[Event "11th LCC Rapid 2019"]
[Site "London"]
[Date "2019.12.07"]
[Round "3.2"]
[White "Salem, Ihab"]
[Black "Harvey, Marcus R"]
[Result "0-1"]
[WhiteElo "2071"]
[BlackElo "2412"]
[PlyCount "108"]
[EventDate "2019.12.08"]
[EventType "swiss"]
[EventCountry "ENG"]
[TimeControl "15+10"]
[WhiteClock "0:13:33"]
[BlackClock "0:01:06"]

1. e4 {[%emt 0:00:00]} e6 {[%emt 0:00:00]} 2. d3 {[%emt 0:00:00]} c5 {[%emt 0:00:00]} 3. Nf3 {[%emt 0:00:00]} Nc6 {[%emt 0:00:00]} 4. g3 {[%emt 0:00:00]} d6 {[%emt 0:00:00]} 5. Bg2 {[%emt 0:00:00]} g6 {[%emt 0:00:00]} 6. O-O {[%emt 0:00:00]} Bg7 {[%emt 0:00:00]} 7. c3 {[%emt 0:00:00]} e5 {[%emt 0:00:00]} 8. Bg5 {[%emt 0:00:00]} Nge7 {[%emt 0:00:00]} 9. Na3 {[%emt 0:00:00]} O-O {[%emt 0:00:00]} 10. Qd2 {[%emt 0:00:00]} a6 {[%emt 0:00:00]} 11. Nc2 {[%emt 0:00:00]} f5 {[%emt 0:00:00]} 12. exf5 {[%emt 0:00:00]} Bxf5 {[%emt 0:00:00]} 13. Ne3 {[%emt 0:00:00]} Be6 {[%emt 0:00:00]} 14. h4 {[%emt 0:00:00]} h6 {[%emt 0:00:00]} 15. Bxe7 {[%emt 0:00:00]} Qxe7 {[%emt 0:00:00]} 16. h5 {[%emt 0:00:00]} g5 {[%emt 0:00:00]} 17. Nh2 {[%emt 0:00:00]} Qf7 {[%emt 0:00:00]} 18. Qe2 {[%emt 0:00:00]} d5 {[%emt 0:00:00]} 19. Rae1 {[%emt 0:00:00]} Rac8 {[%emt 0:00:00]} 20. Qd1 {[%emt 0:00:00]} b5 {[%emt 0:00:00]} 21. a4 {[%emt 0:00:00]} Kh8 {[%emt 0:00:00]} 22. axb5 {[%emt 0:00:00]} axb5 {[%emt 0:00:00]} 23. b3 {[%emt 0:00:00]} Rfd8 {[%emt 0:00:00]} 24. Nc2 {[%emt 0:00:07]} c4 {[%emt 0:00:00]} 25. b4 {[%emt 0:01:10]} cxd3 {[%emt 0:00:00]} 26. Qxd3 {[%emt 0:00:01]} e4 {[%emt 0:00:00]} 27. Qxb5 {[%emt 0:00:45]} Bxc3 {[%emt 0:00:00]} 28. Re3 {[%emt 0:00:32]} Nd4 {[%emt 0:00:00]} 29. Nxd4 {[%emt 0:00:08]} Bxd4 {[%emt 0:00:00]} 30. Ra3 {[%emt 0:00:31]} Rc2 {[%emt 0:00:00]} 31. Ra6 {[%emt 0:00:13]} Rxf2 {[%emt 0:00:00]} 32. Kh1 {[%emt 0:00:21]} Rxf1+ {[%emt 0:00:00]} 33. Qxf1 {[%emt 0:00:06]} Qxf1+ {[%emt 0:00:00]} 34. Bxf1 {[%emt 0:00:03]} Bf7 {[%emt 0:00:00]} 35. Rxh6+ {[%emt 0:00:12]} Kg7 {[%emt 0:00:00]} 36. Rc6 {[%emt 0:00:09]} Bxh5 {[%emt 0:00:00]} 37. b5 {[%emt 0:00:08]} Be5 {[%emt 0:00:00]} 38. b6 {[%emt 0:00:11]} d4 {[%emt 0:00:00]} 39. g4 {[%emt 0:00:05]} d3 {[%emt 0:00:00]} 40. gxh5 {[%emt 0:00:49]} d2 {[%emt 0:00:00]} 41. h6+ {[%emt 0:00:14]} Kh7 {[%emt 0:00:00]} 42. Be2 {[%emt 0:00:06]} d1=Q+ {[%emt 0:00:00]} 43. Bxd1 {[%emt 0:00:02]} Rxd1+ {[%emt 0:00:00]} 44. Kg2 {[%emt 0:00:05]} Rd2+ {[%emt 0:00:00]} 45. Kf1 {[%emt 0:00:11]} Rxh2 {[%emt 0:00:00]} 46. Re6 {[%emt 0:00:07]} Bf4 {[%emt 0:00:00]} 47. Rxe4 {[%emt 0:00:16]} Kxh6 {[%emt 0:00:00]} 48. b7 {[%emt 0:00:20]} Rb2 {[%emt 0:00:00]} 49. Re7 {[%emt 0:00:04]} Kh5 {[%emt 0:00:00]} 50. Rd7 {[%emt 0:00:41]} Kg4 {[%emt 0:00:05]} 51. Kg1 {[%emt 0:00:11]} Kf3 {[%emt 0:00:00]} 52. Rd3+ {[%emt 0:00:07]} Be3+ {[%emt 0:00:00]} 53. Kh1 {[%emt 0:00:09]} Rxb7 {[%emt 0:00:00]} 54. Ra3 {[%emt 0:00:05]} Rh7# {[%emt 0:00:00]} 0-1

[Event "11th LCC Rapid 2019"]
[Site "London"]
[Date "2019.12.07"]
[Round "3.3"]
[White "Haydon, David L"]
[Black "Willow, Jonah B"]
[Result "1/2-1/2"]
[WhiteElo "2294"]
[BlackElo "2355"]
[PlyCount "146"]
[EventDate "2019.12.08"]
[EventType "swiss"]
[EventCountry "ENG"]
[TimeControl "15+10"]

1. Nf3 {[%emt 0:31:15]} c5 {[%emt 0:00:02]} 2. c4 {[%emt 0:00:07]} Nc6 {[%emt 0:00:01]} 3. g3 {[%emt 0:00:03]} g6 {[%emt 0:00:02]} 4. Bg2 {[%emt 0:00:07]} Bg7 {[%emt 0:00:02]} 5. O-O {[%emt 0:00:03]} e6 {[%emt 0:00:02]} 6. Nc3 {[%emt 0:00:10]} Nge7 {[%emt 0:00:02]} 7. d3 {[%emt 0:00:26]} O-O {[%emt 0:00:04]} 8. Bd2 {[%emt 0:00:04]} h6 {[%emt 0:00:37]} 9. Rb1 {[%emt 0:00:53]} b6 {[%emt 0:00:43]} 10. a3 {[%emt 0:00:11]} Bb7 {[%emt 0:00:26]} 11. b4 {[%emt 0:00:02]} d6 {[%emt 0:00:02]} 12. bxc5 {[%emt 0:00:17]} dxc5 {[%emt 0:00:04]} 13. Ne4 {[%emt 0:00:10]} Rb8 {[%emt 0:02:27]} 14. Qc1 {[%emt 0:02:37]} Kh7 {[%emt 0:00:40]} 15. a4 {[%emt 0:00:52]} Nd4 {[%emt 0:00:25]} 16. Nxd4 {[%emt 0:00:18]} cxd4 {[%emt 0:00:13]} 17. Bb4 {[%emt 0:01:04]} f5 {[%emt 0:00:53]} 18. Nd2 {[%emt 0:00:05]} Bxg2 {[%emt 0:00:12]} 19. Kxg2 {[%emt 0:00:02]} Re8 {[%emt 0:00:44]} 20. Qa3 {[%emt 0:00:38]} Nc6 {[%emt 0:00:20]} 21. Bd6 {[%emt 0:00:06]} Rc8 {[%emt 0:00:26]} 22. Rfc1 {[%emt 0:00:49]} Na5 {[%emt 0:01:56]} 23. Bb4 {[%emt 0:01:02]} Nc6 24. Nb3 {[%emt 0:00:16]} e5 {[%emt 0:00:28]} 25. a5 {[%emt 0:01:27]} e4 {[%emt 0:00:08]} 26. axb6 {[%emt 0:00:08]} axb6 {[%emt 0:00:02]} 27. Nd2 {[%emt 0:00:24]} e3 {[%emt 0:00:29]} 28. Nf3 {[%emt 0:00:57]} exf2 {[%emt 0:00:50]} 29. Kxf2 {[%emt 0:00:35]} Qf6 {[%emt 0:00:36]} 30. Bd2 {[%emt 0:00:13]} Bf8 {[%emt 0:01:02]} 31. Qa6 {[%emt 0:00:24]} Qe6 {[%emt 0:00:48]} 32. Re1 {[%emt 0:00:16]} Bc5 {[%emt 0:00:11]} 33. Rxb6 {[%emt 0:00:52]} Bxb6 {[%emt 0:00:07]} 34. Qxb6 {[%emt 0:00:02]} Rb8 {[%emt 0:00:24]} 35. Qc5 {[%emt 0:01:40]} Rb2 {[%emt 0:00:11]} 36. Kf1 {[%emt 0:00:03]} g5 {[%emt 0:01:48]} 37. e3 {[%emt 0:00:05]} Rxd2 {[%emt 0:00:37]} 38. Nxd2 {[%emt 0:00:03]} dxe3 {[%emt 0:00:02]} 39. Nf3 {[%emt 0:00:03]} f4 {[%emt 0:00:19]} 40. g4 {[%emt 0:00:20]} Qg6 {[%emt 0:02:01]} 41. Ke2 {[%emt 0:00:19]} Rb8 {[%emt 0:00:48]} 42. Qa3 {[%emt 0:00:16]} Qf6 {[%emt 0:00:31]} 43. Kf1 {[%emt 0:01:52]} Rb2 {[%emt 0:00:17]} 44. Re2 {[%emt 0:00:13]} Rb1+ {[%emt 0:00:01]} 45. Kg2 Rb7 {[%emt 0:00:33]} 46. Qc5 {[%emt 0:00:15]} Rb2 {[%emt 0:00:08]} 47. Rxb2 {[%emt 0:00:09]} Qxb2+ 48. Kh3 Qf6 {[%emt 0:00:16]} 49. Qd5 {[%emt 0:00:05]} Ne7 {[%emt 0:00:19]} 50. Qe4+ {[%emt 0:00:01]} Kg7 {[%emt 0:00:05]} 51. d4 {[%emt 0:00:02]} h5 {[%emt 0:00:11]} 52. d5 {[%emt 0:00:25]} e2 {[%emt 0:00:08]} 53. gxh5 {[%emt 0:00:22]} Qf5+ {[%emt 0:00:16]} 54. Qxf5 {[%emt 0:00:02]} Nxf5 {[%emt 0:00:01]} 55. Kg4 {[%emt 0:00:15]} Nd4 {[%emt 0:00:23]} 56. Ne1 {[%emt 0:00:01]} Kf6 {[%emt 0:00:04]} 57. c5 {[%emt 0:00:04]} Ke5 {[%emt 0:00:03]} 58. h6 {[%emt 0:00:01]} f3 {[%emt 0:00:09]} 59. Kg3 {[%emt 0:00:05]} Nf5+ {[%emt 0:00:09]} 60. Kxf3 {[%emt 0:00:02]} Nxh6 {[%emt 0:00:02]} 61. d6 {[%emt 0:00:11]} Kd5 {[%emt 0:00:06]} 62. Kxe2 {[%emt 0:00:02]} Kxc5 {[%emt 0:00:05]} 63. d7 {[%emt 0:00:01]} Nf7 64. Nf3 {[%emt 0:00:02]} Kd6 {[%emt 0:00:19]} 65. Nxg5 {[%emt 0:00:09]} Nd8 {[%emt 0:00:01]} 66. Ke3 {[%emt 0:00:05]} Kxd7 {[%emt 0:00:02]} 67. Ke4 {[%emt 0:00:01]} Ne6 {[%emt 0:00:06]} 68. h4 {[%emt 0:00:26]} Nxg5+ {[%emt 0:00:25]} 69. hxg5 {[%emt 0:00:02]} Ke6 {[%emt 0:00:02]} 70. Kf4 {[%emt 0:00:04]} Kf7 {[%emt 0:00:01]} 71. Kf5 {[%emt 0:00:02]} Kg7 72. g6 {[%emt 0:00:02]} Kg8 73. Kf6 {[%emt 0:00:02]} Kf8 1/2-1/2

[Event "11th LCC Rapid 2019"]
[Site "London"]
[Date "2019.12.07"]
[Round "3.4"]
[White "Mihalik, Agoston"]
[Black "O'Gorman, Tom"]
[Result "0-1"]
[WhiteElo "2196"]
[BlackElo "2001"]
[PlyCount "114"]
[EventDate "2019.12.08"]
[EventType "swiss"]
[EventCountry "ENG"]
[TimeControl "15+10"]
[WhiteClock "0:01:49"]
[BlackClock "0:00:32"]

1. e4 {[%emt 0:00:00]} c5 {[%emt 0:00:00]} 2. Nf3 {[%emt 0:00:00]} d6 {[%emt 0:00:00]} 3. Bb5+ {[%emt 0:00:00]} Bd7 {[%emt 0:00:00]} 4. Bxd7+ {[%emt 0:00:00]} Nxd7 {[%emt 0:00:00]} 5. O-O {[%emt 0:00:00]} Ngf6 {[%emt 0:00:00]} 6. Qe2 {[%emt 0:00:00]} Rc8 {[%emt 0:00:00]} 7. c4 {[%emt 0:00:00]} g6 {[%emt 0:00:00]} 8. b3 {[%emt 0:00:00]} Bg7 {[%emt 0:00:00]} 9. Bb2 {[%emt 0:00:00]} O-O {[%emt 0:00:00]} 10. d4 {[%emt 0:00:00]} cxd4 {[%emt 0:00:00]} 11. Nxd4 {[%emt 0:00:00]} e6 {[%emt 0:00:00]} 12. Nc3 {[%emt 0:00:00]} d5 {[%emt 0:00:00]} 13. cxd5 {[%emt 0:00:00]} exd5 {[%emt 0:00:00]} 14. exd5 {[%emt 0:00:00]} Nb6 {[%emt 0:00:00]} 15. Rad1 {[%emt 0:00:00]} Nbxd5 {[%emt 0:00:00]} 16. Nxd5 {[%emt 0:00:00]} Qxd5 {[%emt 0:00:00]} 17. Nb5 {[%emt 0:00:00]} Qe4 {[%emt 0:00:00]} 18. Qxe4 {[%emt 0:00:00]} Nxe4 {[%emt 0:00:00]} 19. Bxg7 {[%emt 0:00:00]} Kxg7 {[%emt 0:00:00]} 20. Rc1 {[%emt 0:00:00]} a6 {[%emt 0:00:00]} 21. Nc7 {[%emt 0:00:00]} Rfd8 {[%emt 0:00:00]} 22. f3 {[%emt 0:00:00]} Nf6 {[%emt 0:00:00]} 23. b4 {[%emt 0:00:19]} Nh5 {[%emt 0:00:00]} 24. g3 {[%emt 0:00:22]} Nf6 {[%emt 0:00:00]} 25. a4 {[%emt 0:00:53]} Kg8 {[%emt 0:00:00]} 26. b5 {[%emt 0:00:05]} axb5 {[%emt 0:00:00]} 27. Nxb5 {[%emt 0:00:20]} Ra8 {[%emt 0:00:00]} 28. Rc4 {[%emt 0:00:12]} Nd5 {[%emt 0:00:00]} 29. Rd4 {[%emt 0:01:11]} Nb6 {[%emt 0:00:17]} 30. Rfd1 {[%emt 0:00:44]} Rxd4 {[%emt 0:00:04]} 31. Rxd4 {[%emt 0:00:01]} Nxa4 {[%emt 0:00:17]} 32. Rd7 {[%emt 0:00:40]} Nc5 {[%emt 0:01:45]} 33. Rc7 {[%emt 0:00:04]} b6 {[%emt 0:00:49]} 34. Nd6 {[%emt 0:00:03]} Rf8 {[%emt 0:00:36]} 35. Nc4 {[%emt 0:00:12]} Na4 {[%emt 0:00:02]} 36. Nd6 {[%emt 0:00:12]} Kg7 {[%emt 0:00:09]} 37. Kf2 {[%emt 0:00:30]} Kf6 {[%emt 0:00:04]} 38. Ne4+ {[%emt 0:00:02]} Ke6 {[%emt 0:00:19]} 39. Ng5+ {[%emt 0:00:04]} Kd6 {[%emt 0:00:05]} 40. Ra7 {[%emt 0:00:01]} b5 {[%emt 0:00:14]} 41. Nxf7+ {[%emt 0:00:08]} Kc5 {[%emt 0:00:05]} 42. Ng5 {[%emt 0:00:14]} Rb8 {[%emt 0:00:12]} 43. Ne4+ {[%emt 0:00:04]} Kc4 {[%emt 0:00:32]} 44. Nd6+ {[%emt 0:00:05]} Kb3 {[%emt 0:00:03]} 45. Rxh7 {[%emt 0:00:32]} b4 {[%emt 0:00:01]} 46. Ne4 {[%emt 0:00:13]} Nc3 {[%emt 0:00:41]} 47. Nc5+ {[%emt 0:00:04]} Kc4 {[%emt 0:00:09]} 48. Na6 {[%emt 0:00:25]} Rb6 {[%emt 0:00:14]} 49. Nxb4 {[%emt 0:00:17]} Kxb4 {[%emt 0:00:01]} 50. h4 {[%emt 0:00:04]} Kc4 {[%emt 0:00:10]} 51. h5 {[%emt 0:00:10]} Rb2+ {[%emt 0:00:17]} 52. Kf1 {[%emt 0:00:16]} gxh5 {[%emt 0:00:04]} 53. Rxh5 {[%emt 0:00:05]} Kd4 {[%emt 0:00:09]} 54. Rf5 {[%emt 0:00:16]} Ke3 {[%emt 0:00:27]} 55. g4 {[%emt 0:00:09]} Ne2 {[%emt 0:00:06]} 56. Rf8 {[%emt 0:00:05]} Nf4 {[%emt 0:00:03]} 57. g5 {[%emt 0:00:11]} Rb1# {[%emt 0:00:01]} 0-1

[Event "11th LCC Rapid 2019"]
[Site "London"]
[Date "2019.12.07"]
[Round "3.5"]
[White "Makkar, Rajat"]
[Black "Gordon, Stephen J"]
[Result "0-1"]
[WhiteElo "2137"]
[BlackElo "2495"]
[PlyCount "82"]
[EventDate "2019.12.08"]
[EventType "swiss"]
[EventCountry "ENG"]
[TimeControl "15+10"]
[WhiteClock "0:07:22"]
[BlackClock "0:08:36"]

1. d4 {[%emt 0:00:00]} d5 {[%emt 0:00:00]} 2. c4 {[%emt 0:00:00]} e6 {[%emt 0:00:00]} 3. Nf3 {[%emt 0:00:00]} a6 {[%emt 0:00:00]} 4. g3 {[%emt 0:00:00]} dxc4 {[%emt 0:00:00]} 5. Bg2 {[%emt 0:00:00]} Nc6 {[%emt 0:00:00]} 6. O-O {[%emt 0:00:00]} Rb8 {[%emt 0:00:00]} 7. e3 {[%emt 0:00:00]} b5 {[%emt 0:00:00]} 8. e4 {[%emt 0:00:00]} Nf6 {[%emt 0:00:00]} 9. Ne5 {[%emt 0:00:00]} Nxe5 {[%emt 0:00:00]} 10. dxe5 {[%emt 0:00:00]} Qxd1 {[%emt 0:00:00]} 11. Rxd1 {[%emt 0:00:00]} Nd7 {[%emt 0:00:00]} 12. f4 {[%emt 0:00:00]} Bc5+ {[%emt 0:00:00]} 13. Kf1 {[%emt 0:00:00]} Bb7 {[%emt 0:00:00]} 14. Ke2 {[%emt 0:00:00]} Ke7 {[%emt 0:00:00]} 15. Be3 {[%emt 0:00:00]} Bxe3 {[%emt 0:00:00]} 16. Kxe3 {[%emt 0:00:00]} Nc5 {[%emt 0:00:00]} 17. Nc3 {[%emt 0:00:00]} Rhd8 {[%emt 0:00:00]} 18. g4 {[%emt 0:00:00]} Nd3 {[%emt 0:00:00]} 19. b3 {[%emt 0:00:00]} Nb2 {[%emt 0:00:00]} 20. Rxd8 {[%emt 0:00:00]} Rxd8 {[%emt 0:00:00]} 21. Rb1 {[%emt 0:00:00]} Rd3+ {[%emt 0:00:00]} 22. Ke2 {[%emt 0:00:00]} Rxc3 {[%emt 0:00:00]} 23. Rxb2 {[%emt 0:00:00]} cxb3 {[%emt 0:00:00]} 24. axb3 {[%emt 0:00:00]} c5 {[%emt 0:00:00]} 25. Kd2 {[%emt 0:00:00]} b4 {[%emt 0:00:00]} 26. f5 {[%emt 0:00:00]} exf5 {[%emt 0:00:00]} 27. gxf5 {[%emt 0:00:00]} g6 {[%emt 0:00:00]} 28. Bf1 {[%emt 0:00:00]} Bxe4 {[%emt 0:00:00]} 29. fxg6 {[%emt 0:00:00]} hxg6 {[%emt 0:00:00]} 30. Bxa6 {[%emt 0:00:00]} Bd5 {[%emt 0:00:00]} 31. Rc2 {[%emt 0:00:00]} Rxc2+ {[%emt 0:00:00]} 32. Kxc2 {[%emt 0:00:00]} Ke6 {[%emt 0:00:00]} 33. h4 {[%emt 0:00:00]} Kxe5 {[%emt 0:00:00]} 34. Be2 {[%emt 0:00:00]} Kf4 {[%emt 0:00:00]} 35. h5 {[%emt 0:00:00]} gxh5 {[%emt 0:00:00]} 36. Bxh5 {[%emt 0:00:00]} Ke3 {[%emt 0:00:00]} 37. Bg4 {[%emt 0:00:00]} Be4+ {[%emt 0:00:00]} 38. Kb2 {[%emt 0:00:00]} f5 {[%emt 0:00:00]} 39. Bh5 {[%emt 0:00:00]} f4 {[%emt 0:00:00]} 40. Bd1 {[%emt 0:00:00]} Kd2 {[%emt 0:00:00]} 41. Bg4 {[%emt 0:00:00]} f3 {[%emt 0:00:00]} 0-1

[Event "11th LCC Rapid 2019"]
[Site "London"]
[Date "2019.12.07"]
[Round "3.6"]
[White "Arkell, Keith C"]
[Black "Marusenko, Petr"]
[Result "1-0"]
[WhiteElo "2453"]
[BlackElo "2085"]
[PlyCount "175"]
[EventDate "2019.12.08"]
[EventType "swiss"]
[EventCountry "ENG"]
[TimeControl "15+10"]
[WhiteClock "0:05:17"]
[BlackClock "0:07:23"]

1. d4 {[%emt 0:00:00]} d5 {[%emt 0:00:00]} 2. c4 {[%emt 0:00:00]} c6 {[%emt 0:00:00]} 3. Nf3 {[%emt 0:00:00]} Nf6 {[%emt 0:00:00]} 4. Qc2 {[%emt 0:00:00]} g6 {[%emt 0:00:00]} 5. Bf4 {[%emt 0:00:00]} Bf5 {[%emt 0:00:00]} 6. Qb3 {[%emt 0:00:00]} Qb6 {[%emt 0:00:00]} 7. e3 {[%emt 0:00:00]} Nbd7 {[%emt 0:00:00]} 8. Nc3 {[%emt 0:00:00]} Bg7 {[%emt 0:00:00]} 9. h3 {[%emt 0:00:00]} Qxb3 {[%emt 0:00:00]} 10. axb3 {[%emt 0:00:00]} h5 {[%emt 0:00:00]} 11. Be2 {[%emt 0:00:00]} O-O {[%emt 0:00:00]} 12. Ne5 {[%emt 0:00:00]} Ne4 {[%emt 0:00:00]} 13. Nxd7 {[%emt 0:00:00]} Bxd7 {[%emt 0:00:00]} 14. cxd5 {[%emt 0:00:00]} Nxc3 {[%emt 0:00:00]} 15. bxc3 {[%emt 0:00:00]} cxd5 {[%emt 0:00:00]} 16. Kd2 {[%emt 0:00:00]} a6 {[%emt 0:00:00]} 17. Ra5 {[%emt 0:00:00]} Bc6 {[%emt 0:00:00]} 18. Bf3 {[%emt 0:00:00]} Rad8 {[%emt 0:00:00]} 19. Bc7 {[%emt 0:00:00]} Rd7 {[%emt 0:00:00]} 20. Bb6 {[%emt 0:00:00]} f6 {[%emt 0:00:00]} 21. g4 {[%emt 0:00:00]} hxg4 {[%emt 0:00:00]} 22. hxg4 {[%emt 0:00:00]} e5 {[%emt 0:00:00]} 23. c4 {[%emt 0:00:00]} dxc4 {[%emt 0:00:00]} 24. Bxc6 {[%emt 0:00:00]} bxc6 {[%emt 0:00:00]} 25. bxc4 {[%emt 0:00:00]} Rb8 {[%emt 0:00:00]} 26. Rxa6 {[%emt 0:00:00]} Bf8 {[%emt 0:00:00]} 27. Kc3 {[%emt 0:00:00]} exd4+ {[%emt 0:00:00]} 28. Bxd4 {[%emt 0:00:00]} Bb4+ {[%emt 0:00:00]} 29. Kc2 {[%emt 0:00:00]} c5 {[%emt 0:00:00]} 30. Bc3 {[%emt 0:00:00]} Bxc3 {[%emt 0:00:00]} 31. Kxc3 {[%emt 0:00:00]} Kg7 {[%emt 0:00:00]} 32. Rc6 {[%emt 0:00:00]} Ra8 {[%emt 0:00:00]} 33. Rxc5 {[%emt 0:00:00]} Ra2 {[%emt 0:00:00]} 34. Rd5 {[%emt 0:00:00]} Rda7 {[%emt 0:00:00]} 35. f4 {[%emt 0:00:00]} Re7 {[%emt 0:00:00]} 36. Re1 {[%emt 0:00:00]} Rg2 {[%emt 0:00:00]} 37. g5 {[%emt 0:00:00]} f5 {[%emt 0:00:00]} 38. c5 {[%emt 0:00:00]} Ra2 {[%emt 0:00:00]} 39. c6 {[%emt 0:00:00]} Ra6 {[%emt 0:00:00]} 40. Rd6 {[%emt 0:00:00]} Rc7 {[%emt 0:00:00]} 41. Kd4 {[%emt 0:00:00]} Raxc6 {[%emt 0:00:00]} 42. Rxc6 {[%emt 0:00:00]} Rxc6 {[%emt 0:00:00]} 43. Rb1 {[%emt 0:00:00]} Rc7 {[%emt 0:00:00]} 44. Rb5 {[%emt 0:00:00]} Re7 {[%emt 0:00:00]} 45. Re5 {[%emt 0:00:00]} Rd7+ {[%emt 0:00:00]} 46. Kc5 {[%emt 0:00:00]} Ra7 {[%emt 0:00:00]} 47. Re6 {[%emt 0:00:00]} Rb7 {[%emt 0:00:00]} 48. Kc6 {[%emt 0:00:00]} Ra7 {[%emt 0:00:00]} 49. Kb6 {[%emt 0:00:00]} Rd7 {[%emt 0:00:00]} 50. Rc6 {[%emt 0:00:00]} Rd3 {[%emt 0:00:00]} 51. Re6 {[%emt 0:00:00]} Rd7 {[%emt 0:00:00]} 52. Kc5 {[%emt 0:00:00]} Ra7 {[%emt 0:00:00]} 53. Kd6 {[%emt 0:00:00]} Ra6+ {[%emt 0:00:00]} 54. Kd7 {[%emt 0:00:00]} Ra7+ {[%emt 0:00:00]} 55. Kd8 {[%emt 0:00:00]} Ra8+ {[%emt 0:00:00]} 56. Kc7 {[%emt 0:00:00]} Ra7+ {[%emt 0:00:03]} 57. Kc8 {[%emt 0:00:00]} Kf7 {[%emt 0:00:12]} 58. Rf6+ {[%emt 0:00:00]} Kg7 {[%emt 0:00:01]} 59. Rd6 {[%emt 0:00:00]} Ra3 {[%emt 0:00:06]} 60. Re6 {[%emt 0:00:00]} Ra7 {[%emt 0:00:05]} 61. Kd8 {[%emt 0:00:36]} Ra8+ {[%emt 0:00:11]} 62. Kc7 {[%emt 0:00:02]} Ra7+ {[%emt 0:00:01]} 63. Kb6 {[%emt 0:00:01]} Rd7 {[%emt 0:00:08]} 64. Kc6 {[%emt 0:00:01]} Ra7 {[%emt 0:00:01]} 65. Kb5 {[%emt 0:02:17]} Rc7 {[%emt 0:00:18]} 66. Ka6 {[%emt 0:00:11]} Kf7 {[%emt 0:00:17]} 67. Rf6+ {[%emt 0:00:08]} Kg7 {[%emt 0:00:01]} 68. Rd6 {[%emt 0:00:06]} Kf7 {[%emt 0:01:04]} 69. Kb6 {[%emt 0:00:13]} Rc3 {[%emt 0:01:00]} 70. Rf6+ {[%emt 0:00:02]} Kg7 {[%emt 0:00:13]} 71. Re6 {[%emt 0:00:01]} Rc4 {[%emt 0:00:16]} 72. Kb5 {[%emt 0:00:01]} Rc1 {[%emt 0:00:05]} 73. Rc6 {[%emt 0:00:19]} Rd1 {[%emt 0:00:38]} 74. Kc4 {[%emt 0:00:29]} Rd7 {[%emt 0:00:14]} 75. Re6 {[%emt 0:00:27]} Ra7 {[%emt 0:00:11]} 76. Kc5 {[%emt 0:00:29]} Ra5+ {[%emt 0:00:20]} 77. Kb6 {[%emt 0:00:10]} Rd5 {[%emt 0:00:12]} 78. Kc6 {[%emt 0:00:01]} Ra5 {[%emt 0:00:05]} 79. Re7+ {[%emt 0:00:03]} Kg8 {[%emt 0:00:01]} 80. Kd6 {[%emt 0:00:10]} Ra3 {[%emt 0:00:40]} 81. Ke5 {[%emt 0:00:33]} Rxe3+ {[%emt 0:02:11]} 82. Kf6 {[%emt 0:00:01]} Re4 {[%emt 0:00:02]} 83. Ra7 {[%emt 0:00:45]} Rxf4 {[%emt 0:00:05]} 84. Kxg6 {[%emt 0:00:01]} Kf8 {[%emt 0:00:07]} 85. Kf6 {[%emt 0:00:01]} Ke8 {[%emt 0:00:13]} 86. g6 {[%emt 0:00:01]} Rb4 {[%emt 0:00:21]} 87. g7 {[%emt 0:00:15]} Rb6+ {[%emt 0:00:06]} 88. Kg5 {[%emt 0:00:08]} 1-0

[Event "11th LCC Rapid 2019"]
[Site "London"]
[Date "2019.12.07"]
[Round "3.7"]
[White "Clarke, Brandon Gi"]
[Black "Stoyanov, Viktor"]
[Result "1-0"]
[WhiteElo "2380"]
[BlackElo "2272"]
[PlyCount "65"]
[EventDate "2019.12.08"]
[EventType "swiss"]
[EventCountry "ENG"]
[TimeControl "15+10"]
[WhiteClock "0:03:54"]
[BlackClock "0:01:52"]

1. e4 {[%emt 0:00:00]} c6 {[%emt 0:00:00]} 2. d4 {[%emt 0:00:00]} d5 {[%emt 0:00:00]} 3. e5 {[%emt 0:00:00]} c5 {[%emt 0:00:00]} 4. dxc5 {[%emt 0:00:00]} e6 {[%emt 0:00:00]} 5. a3 {[%emt 0:00:00]} Bxc5 {[%emt 0:00:00]} 6. Nf3 {[%emt 0:00:00]} Ne7 {[%emt 0:00:00]} 7. b4 {[%emt 0:00:00]} Bb6 {[%emt 0:00:00]} 8. Bd3 {[%emt 0:00:00]} a5 {[%emt 0:00:00]} 9. Bb2 {[%emt 0:00:00]} axb4 {[%emt 0:00:00]} 10. axb4 {[%emt 0:00:00]} Rxa1 {[%emt 0:00:00]} 11. Bxa1 {[%emt 0:00:00]} Nbc6 {[%emt 0:00:00]} 12. b5 {[%emt 0:00:00]} Nb8 {[%emt 0:00:00]} 13. Nbd2 {[%emt 0:00:00]} Nd7 {[%emt 0:00:00]} 14. c4 {[%emt 0:00:00]} Nc5 {[%emt 0:00:00]} 15. Bc2 {[%emt 0:00:00]} O-O {[%emt 0:00:00]} 16. O-O {[%emt 0:00:00]} Bd7 {[%emt 0:00:00]} 17. h4 {[%emt 0:00:00]} h6 {[%emt 0:00:00]} 18. g3 {[%emt 0:00:00]} dxc4 {[%emt 0:00:00]} 19. Nd4 {[%emt 0:00:00]} c3 {[%emt 0:00:00]} 20. Bxc3 {[%emt 0:00:00]} Nd5 {[%emt 0:00:00]} 21. Bb2 {[%emt 0:00:00]} Nb4 {[%emt 0:00:00]} 22. Ba3 {[%emt 0:00:00]} Nxc2 {[%emt 0:00:00]} 23. Qxc2 {[%emt 0:00:00]} Qc7 {[%emt 0:00:00]} 24. Nc4 {[%emt 0:00:00]} Rc8 {[%emt 0:00:00]} 25. Rc1 {[%emt 0:00:00]} Na4 {[%emt 0:00:00]} 26. Qxa4 {[%emt 0:00:00]} Bxd4 {[%emt 0:00:00]} 27. Nd6 {[%emt 0:00:00]} Qb6 {[%emt 0:00:46]} 28. Nxc8 {[%emt 0:02:52]} Bxf2+ {[%emt 0:00:02]} 29. Kg2 {[%emt 0:00:09]} Bxg3 {[%emt 0:00:47]} 30. Ne7+ {[%emt 0:00:17]} Kh7 {[%emt 0:00:02]} 31. Qe4+ {[%emt 0:00:13]} g6 {[%emt 0:00:03]} 32. Kxg3 {[%emt 0:00:10]} Bxb5 {[%emt 0:00:01]} 33. h5 {[%emt 0:00:12]} 1-0

[Event "11th LCC Rapid 2019"]
[Site "London"]
[Date "2019.12.07"]
[Round "3.8"]
[White "Fernandez, Michael"]
[Black "Stewart, Ashley"]
[Result "1/2-1/2"]
[WhiteElo "2186"]
[BlackElo "2172"]
[PlyCount "79"]
[EventDate "2019.12.08"]
[EventType "swiss"]
[EventCountry "ENG"]
[TimeControl "15+10"]
[WhiteClock "0:00:26"]
[BlackClock "0:00:53"]

1. b4 {[%emt 0:00:00]} e5 {[%emt 0:00:00]} 2. Bb2 {[%emt 0:00:00]} Bxb4 {[%emt 0:00:00]} 3. Bxe5 {[%emt 0:00:00]} Nf6 {[%emt 0:00:00]} 4. Nf3 {[%emt 0:00:00]} d5 {[%emt 0:00:00]} 5. e3 {[%emt 0:00:00]} O-O {[%emt 0:00:00]} 6. c4 {[%emt 0:00:00]} Nc6 {[%emt 0:00:00]} 7. Bb2 {[%emt 0:00:00]} Re8 {[%emt 0:00:00]} 8. Be2 {[%emt 0:00:00]} Bg4 {[%emt 0:00:00]} 9. cxd5 {[%emt 0:00:00]} Nxd5 {[%emt 0:00:00]} 10. O-O {[%emt 0:00:00]} Qd7 {[%emt 0:00:00]} 11. Nc3 {[%emt 0:00:00]} Nxc3 {[%emt 0:00:00]} 12. Bxc3 {[%emt 0:00:00]} Bxc3 {[%emt 0:00:00]} 13. dxc3 {[%emt 0:00:00]} Qxd1 {[%emt 0:00:00]} 14. Rfxd1 {[%emt 0:00:00]} Ne5 {[%emt 0:00:00]} 15. Kf1 {[%emt 0:00:00]} Nxf3 {[%emt 0:01:07]} 16. gxf3 {[%emt 0:00:00]} Be6 {[%emt 0:00:00]} 17. f4 {[%emt 0:00:00]} Rad8 {[%emt 0:00:00]} 18. a3 {[%emt 0:00:00]} Kf8 {[%emt 0:00:00]} 19. Bf3 {[%emt 0:00:00]} c6 {[%emt 0:00:00]} 20. Rab1 {[%emt 0:00:00]} Rxd1+ {[%emt 0:00:00]} 21. Bxd1 {[%emt 0:00:00]} Re7 {[%emt 0:00:00]} 22. Bc2 {[%emt 0:00:00]} Rd7 {[%emt 0:00:00]} 23. Ke1 {[%emt 0:00:00]} h6 {[%emt 0:00:00]} 24. Be4 {[%emt 0:00:00]} Ke7 {[%emt 0:00:00]} 25. f5 {[%emt 0:00:00]} Bd5 {[%emt 0:00:28]} 26. Bxd5 {[%emt 0:00:00]} cxd5 {[%emt 0:00:01]} 27. Rd1 {[%emt 0:00:00]} Rc7 {[%emt 0:01:20]} 28. Rxd5 {[%emt 0:00:00]} Rxc3 {[%emt 0:00:01]} 29. a4 {[%emt 0:00:00]} Ra3 {[%emt 0:00:30]} 30. Rd4 {[%emt 0:03:10]} Kf6 {[%emt 0:00:19]} 31. Rd7 {[%emt 0:00:06]} Rxa4 {[%emt 0:00:32]} 32. Rxb7 {[%emt 0:00:02]} Ra2 {[%emt 0:00:14]} 33. e4 {[%emt 0:01:21]} Ke5 {[%emt 0:00:52]} 34. Rxf7 {[%emt 0:00:06]} Kxe4 {[%emt 0:00:06]} 35. f6 {[%emt 0:00:31]} gxf6 {[%emt 0:00:08]} 36. Rxf6 {[%emt 0:00:02]} h5 {[%emt 0:00:20]} 37. Rh6 {[%emt 0:00:11]} Kf3 {[%emt 0:00:12]} 38. Rxh5 {[%emt 0:00:17]} Ra1+ {[%emt 0:00:07]} 39. Kd2 {[%emt 0:00:01]} Kxf2 {[%emt 0:00:02]} 40. Kc3 {[%emt 0:00:15]} 1/2-1/2